bitfinex-derivatives/quotes_ETHF0:USTF0_20250923
["timestamp","ask_amount","ask_price","bid_price","bid_amount"]
[1758645441058,0.325,4166.0,4165.4,0.73756]
[1758645441357,3.2078,4167.4,4166.5,0.3999]
[1758645441548,3.63946,4167.4,4166.6,0.3057]
[1758645441749,3.2078,4167.4,4166.6,0.3057]
[1758645441951,3.63946,4167.4,4166.6,0.3057]
[1758645442151,0.325,4167.3,4166.6,0.3057]
[1758645442351,0.588,4167.3,4166.6,0.3057]
[1758645442954,0.43169,4167.1,4166.5,3.2078]
[1758645443155,0.3134,4167.2,4166.5,3.2078]
[1758645443652,0.43173,4166.7,4166.5,3.2078]
[1758645443959,3.2078,4166.8,4166.1,0.43178]
[1758645444160,3.2078,4166.8,4166.1,0.75328]
[1758645444761,3.2078,4166.8,4166.1,0.75329]
[1758645445455,3.2078,4166.8,4165.8,3.4708]
[1758645445456,3.2078,4166.8,4166.7,0.3215]
[1758645446358,3.2078,4167.9,4166.8,0.3215]
[1758645446550,0.3134,4167.7,4166.8,0.3215]
[1758645446855,0.74508,4167.2,4166.8,0.3215]
[1758645447067,0.3134,4167.0,4166.6,3.5293]
[1758645447456,0.3134,4166.9,4166.6,3.5293]
[1758645447954,0.3134,4166.9,4166.6,3.2078]
[1758645448150,3.2078,4167.4,4166.7,0.3215]
[1758645448359,3.2078,4167.4,4166.7,0.75323]
[1758645448551,3.4708,4167.4,4166.7,0.75323]
[1758645448747,0.43168,4167.2,4166.6,3.2078]
[1758645448955,0.43172,4166.8,4166.6,3.5293]
[1758645449156,0.74511,4166.9,4166.3,0.43176]
[1758645449459,0.3134,4166.9,4166.2,0.5835]
[1758645449659,0.74517,4166.4,4166.2,0.3215]
[1758645449856,0.74517,4166.4,4165.8,3.90161]
[1758645449857,0.3134,4166.5,4165.8,3.4698]
[1758645450059,0.43176,4166.5,4165.9,0.7533]
[1758645450252,0.43176,4166.5,4165.9,0.3215]
[1758645450653,0.43176,4166.4,4165.9,0.43181]
[1758645450857,0.3134,4166.4,4166.0,0.4318]
[1758645451058,0.3134,4166.4,4166.1,0.3215]
[1758645451261,0.3134,4166.3,4166.1,0.3215]
[1758645451455,0.74517,4166.3,4166.1,0.3215]
[1758645451861,0.3134,4166.3,4166.1,0.75329]
[1758645452060,0.4318,4166.1,4165.8,3.2078]
[1758645452264,0.3134,4166.0,4165.8,3.2078]
[1758645452762,0.43181,4165.9,4165.8,3.2078]
[1758645452969,0.74521,4165.9,4165.8,3.2078]
[1758645453561,0.3134,4165.9,4165.8,3.2078]
[1758645454963,0.74522,4165.8,4165.6,0.5835]
[1758645455470,0.3134,4165.7,4165.6,0.262]
[1758645456370,0.1316,4166.0,4165.2,3.2078]
[1758645456371,0.43184,4165.6,4165.2,3.4698]
[1758645456662,0.43184,4165.6,4165.2,0.262]
[1758645456663,0.3134,4165.4,4165.2,0.262]
[1758645456869,0.3134,4165.4,4165.3,0.43187]
[1758645457667,0.3134,4165.4,4165.2,1.01538]
[1758645458171,0.3134,4165.3,4165.2,0.3215]
[1758645458370,0.3134,4165.3,4165.1,0.69289]
[1758645458576,0.3134,4165.3,4165.1,1.01439]
[1758645458872,0.43183,4165.7,4165.6,0.3215]
[1758645459066,0.43184,4165.6,4165.3,0.43187]
[1758645459269,0.74525,4165.5,4165.4,0.3215]
[1758645459566,0.3134,4165.6,4165.4,0.43186]
[1758645459766,0.3134,4165.5,4165.1,0.261]
[1758645459967,0.3134,4165.5,4165.4,0.43186]
[1758645460157,0.1316,4166.0,4165.4,0.43186]
[1758645460158,0.1316,4166.0,4165.7,0.43183]
[1758645460361,0.3134,4167.1,4166.0,0.1232]
[1758645460564,0.3134,4167.3,4167.0,0.4317]
[1758645460764,3.63946,4167.4,4167.0,0.7532]
[1758645460968,0.3134,4167.3,4167.1,0.43169]
[1758645461168,3.2078,4167.4,4167.2,0.43168]
[1758645461470,0.43169,4167.1,4166.6,0.43174]
[1758645461668,3.63946,4167.4,4167.0,0.43169]
[1758645461863,0.3134,4167.3,4167.1,0.43168]
[1758645462063,0.3134,4167.3,4167.1,0.75318]
[1758645462375,0.3134,4167.8,4167.1,0.3215]
[1758645462576,0.3134,4167.8,4167.6,0.75313]
[1758645462762,0.74502,4167.8,4167.1,0.3215]
[1758645463068,3.2078,4167.4,4167.3,0.3215]
[1758645463269,3.5212,4167.9,4167.2,0.3215]
[1758645463471,0.3134,4168.2,4167.8,0.3215]
[1758645463676,0.3134,4168.2,4167.0,3.331]
[1758645463677,0.3134,4168.2,4167.2,1.0792]
[1758645463966,0.3134,4168.2,4167.9,0.3215]
[1758645464377,0.3134,4168.1,4167.9,0.3215]
[1758645464669,0.3134,4168.1,4167.5,0.3215]
[1758645464870,0.3134,4167.7,4167.5,0.43164]
[1758645465370,0.3134,4167.7,4167.5,0.75314]
[1758645465775,0.3134,4167.7,4167.5,0.43164]
[1758645465977,0.3134,4167.7,4167.6,0.3215]
[1758645466676,3.2078,4168.3,4168.2,0.75307]
[1758645468483,0.3134,4168.7,4168.2,0.3215]
[1758645468772,0.3134,4169.3,4168.7,0.3215]
[1758645469178,3.2078,4169.4,4168.8,0.43151]
[1758645469371,0.3134,4169.3,4168.7,0.3215]
[1758645469776,0.3134,4169.3,4168.5,3.2078]
[1758645469972,0.3134,4169.3,4168.8,0.4315]
[1758645470274,0.3134,4169.3,4169.2,0.43147]
[1758645470478,3.4688,4169.4,4168.5,3.2078]
[1758645470673,0.3134,4169.3,4168.5,3.2078]
[1758645471065,0.3134,4169.3,4169.2,0.43147]
[1758645471871,0.3134,4169.3,4168.5,3.2078]
[1758645472076,0.3134,4168.9,4168.8,0.43151]
[1758645472286,3.5212,4168.9,4168.8,0.43151]
[1758645472974,3.5212,4168.9,4168.3,0.26]
[1758645473183,0.3043,4168.8,4168.7,0.43151]
[1758645473583,0.26,4169.4,4168.7,0.43151]
[1758645473584,0.3043,4169.3,4169.2,0.43147]
[1758645473877,0.3043,4169.3,4168.7,0.3096]
[1758645474072,0.4317,4169.0,4168.4,1.07889]
[1758645474376,0.5643,4169.2,4168.6,1.38843]
[1758645474584,0.3043,4169.3,4169.2,0.74107]
[1758645474783,0.3043,4169.3,4169.2,0.43147]
[1758645476077,3.04200374,4170.2,4168.9,1.07875]
[1758645476078,3.2078,4169.9,4169.7,0.43142]
[1758645476280,3.2078,4169.9,4169.8,0.3096]
[1758645476479,3.2078,4169.9,4169.7,0.43142]
[1758645476671,0.1316,4170.5,4170.4,0.3096]
[1758645476672,3.5121,4170.5,4170.4,0.3096]
[1758645477176,3.2078,4170.5,4170.4,0.3096]
[1758645477576,3.5121,4170.5,4170.3,0.43135]
[1758645477878,0.3043,4170.9,4170.8,0.4313]
[1758645478382,3.3352,4171.0,4170.6,0.43132]
[1758645478584,3.3352,4171.0,4170.7,0.43131]
[1758645478880,0.3043,4170.9,4170.8,0.7409]
[1758645479086,0.3043,4170.9,4170.8,0.4313]
[1758645479578,0.3043,4171.3,4171.2,0.43126]
[1758645479786,3.5121,4171.6,4171.4,0.74084]
[1758645479978,0.3043,4171.5,4171.4,0.74084]
[1758645480178,0.3043,4171.5,4171.4,0.43124]
[1758645480387,0.4317,4171.5,4171.4,0.43124]
[1758645481082,0.3043,4171.4,4171.3,0.43125]
[1758645481579,0.1274,4172.0,4170.8,1.76956]
[1758645481580,0.3043,4171.8,4171.6,0.43121]
[1758645481787,0.3043,4171.9,4171.7,0.43121]
[1758645481978,0.3043,4171.9,4171.8,0.4312]
[1758645482486,3.2078,4172.1,4171.5,0.3096]
[1758645482687,0.3043,4171.9,4171.3,1.07814]
[1758645482984,0.3043,4171.7,4171.5,0.43123]
[1758645483195,0.1274,4172.0,4171.8,0.4312]
[1758645483386,3.2078,4172.1,4172.0,0.43118]
[1758645483690,3.2078,4172.1,4172.0,0.86418]
[1758645483888,3.2078,4172.1,4172.0,1.12318]
[1758645484288,0.3043,4172.9,4172.5,0.43112]
[1758645484289,3.2078,4172.7,4172.5,0.43112]
[1758645484496,0.3043,4172.9,4172.7,0.43111]
[1758645484685,0.3043,4172.9,4172.8,0.43109]
[1758645485284,3.5121,4173.2,4173.0,0.43107]
[1758645485490,3.5121,4173.2,4173.1,0.3096]
[1758645485685,3.2078,4173.2,4173.1,0.3096]
[1758645486193,3.2078,4173.8,4173.7,0.7406]
[1758645486885,0.3043,4174.4,4173.7,0.5686]
[1758645487287,0.3043,4174.4,4174.3,0.43093]
[1758645487483,1.92780098,4175.1,4174.8,0.43089]
[1758645487685,3.5121,4175.4,4174.9,0.259]
[1758645487891,3.5121,4175.4,4175.1,0.3096]
[1758645488089,0.4317,4176.0,4175.3,0.3096]
[1758645488291,3.2078,4175.6,4175.3,0.3096]
[1758645488493,0.3043,4175.3,4174.9,0.43087]
[1758645488794,0.3043,4175.4,4175.2,0.74044]
[1758645488993,3.2078,4176.1,4175.6,0.43081]
[1758645489202,3.2078,4176.1,4175.8,0.3096]
[1758645489696,3.2078,4176.1,4175.9,0.3096]
[1758645490594,3.2078,4176.1,4176.0,0.3096]
[1758645491896,3.5121,4176.6,4176.0,0.432]
[1758645492088,3.2078,4176.6,4176.5,0.3185]
[1758645492294,3.2078,4177.1,4176.8,0.3185]
[1758645492493,3.2078,4177.1,4176.6,0.3185]
[1758645492799,3.2078,4177.1,4176.8,0.43068]
[1758645492994,3.2078,4177.1,4176.9,0.43067]
[1758645493197,3.97519,4177.8,4177.0,0.5775]
[1758645493403,0.3368,4177.7,4177.0,0.5775]
[1758645493594,0.3368,4177.7,4177.0,0.259]
[1758645493804,0.3368,4177.7,4177.6,0.3185]
[1758645495200,3.2078,4177.8,4177.0,3.2078]
[1758645495399,0.43062,4177.5,4176.8,0.259]
[1758645495595,0.4306,4177.7,4176.8,0.259]
[1758645495790,3.4668,4177.8,4176.8,0.259]
[1758645495994,0.4306,4177.7,4177.1,0.43065]
[1758645496199,3.2078,4177.8,4176.8,0.259]
[1758645496400,3.2078,4177.8,4177.6,0.4306]
[1758645496606,3.2078,4177.8,4177.4,0.43062]
[1758645497099,3.2078,4177.8,4177.5,0.43061]
[1758645497303,3.2078,4177.8,4177.6,0.4306]
[1758645498000,3.2078,4177.8,4177.4,0.259]
[1758645498596,3.2078,4177.8,4177.1,3.2078]
[1758645498900,3.2078,4177.8,4177.3,0.68963]
[1758645499406,3.63838,4177.8,4177.3,0.68963]
[1758645499901,0.43059,4177.7,4177.3,0.259]
[1758645500493,3.2078,4177.8,4177.3,0.68963]
[1758645500702,1.07649,4177.7,4176.4,3.2078]
[1758645500903,3.2078,4177.2,4176.5,0.258]
[1758645501202,0.43068,4176.9,4176.5,0.68871]
[1758645501408,0.43066,4177.1,4176.5,0.258]
[1758645501601,0.43067,4177.0,4176.6,0.4307]
[1758645501804,3.2078,4177.2,4176.5,0.258]
[1758645501805,0.43066,4177.1,4176.7,0.43069]
[1758645502003,3.2078,4177.2,4177.0,0.43066]
[1758645502201,3.63844,4177.2,4176.9,0.43067]
[1758645502501,3.2078,4177.2,4176.9,0.43067]
[1758645502703,3.2078,4177.2,4176.6,0.43071]
[1758645502903,3.2078,4177.2,4176.4,0.43072]
[1758645503100,3.2078,4177.2,4175.8,4.28476]
[1758645503101,0.258,4177.1,4176.1,0.231]
[1758645503402,0.43068,4176.9,4176.4,0.43072]
[1758645503608,0.4307,4176.6,4176.3,0.43072]
[1758645503906,3.2078,4177.2,4176.2,1.07685]
[1758645504092,3.2078,4177.2,4177.0,0.43066]
[1758645504295,3.2078,4177.8,4177.6,0.43059]
[1758645504896,3.2078,4177.8,4177.2,0.43063]
[1758645505207,3.2078,4177.8,4177.6,0.43059]
[1758645505906,0.022,4177.9,4177.8,0.43058]
[1758645506106,3.2078,4178.9,4177.8,0.43058]
[1758645506301,3.2078,4178.9,4178.5,0.4305]
[1758645506500,3.2078,4178.9,4178.6,0.43049]
[1758645507403,3.2078,4178.9,4178.7,0.43048]
[1758645507605,3.2078,4178.9,4178.1,3.2078]
[1758645507905,0.4305,4178.6,4178.2,0.258]
[1758645508101,3.2078,4178.9,4178.6,0.43049]
[1758645508299,3.2078,4178.9,4178.7,0.43048]
[1758645508505,3.2078,4178.9,4178.5,0.4305]
[1758645508706,0.68842,4179.4,4178.9,0.43046]
[1758645508904,0.258,4179.5,4178.9,0.43046]
[1758645509208,0.43043,4179.2,4178.9,0.43046]
[1758645509510,0.258,4179.5,4178.3,1.07632]
[1758645509511,3.2078,4179.3,4178.3,0.43052]
[1758645509702,0.43052,4178.4,4178.2,3.2078]
[1758645511213,0.257,4178.9,4178.2,3.2078]
[1758645511411,0.43051,4178.5,4178.2,3.63833]
[1758645511607,0.43052,4178.4,4178.2,3.63833]
[1758645512010,0.4305,4178.6,4178.3,0.43052]
[1758645512309,3.2078,4179.3,4178.2,3.2078]
[1758645512310,0.43052,4178.4,4178.2,3.2078]
[1758645512707,0.43052,4178.4,4178.2,3.63833]
[1758645512914,1.33314,4179.0,4178.5,0.4305]
[1758645512915,0.43049,4178.7,4178.5,0.4305]
[1758645513113,3.2078,4179.3,4178.3,1.07632]
[1758645513407,0.43042,4179.3,4178.8,3.2078]
[1758645513612,4.54073,4179.8,4179.1,0.43044]
[1758645513910,3.89518,4179.8,4179.4,0.43041]
[1758645514110,0.43039,4179.6,4179.4,0.43041]
[1758645514312,1.07599,4179.6,4178.9,0.43046]
[1758645514810,0.43043,4179.3,4178.8,3.4648]
[1758645515015,3.4648,4179.8,4178.8,3.4648]
[1758645515212,0.43046,4179.0,4178.8,3.4648]
[1758645515511,0.43046,4179.0,4178.8,3.89527]
[1758645515816,0.257,4179.6,4178.8,3.4648]
[1758645516014,0.257,4179.6,4179.2,0.43042]
[1758645516214,0.43041,4179.4,4179.2,0.43042]
[1758645516416,0.43043,4179.2,4179.0,0.43044]
[1758645516608,0.43042,4179.4,4179.2,0.43042]
[1758645517108,3.4648,4179.8,4179.3,0.43041]
[1758645517512,3.2078,4179.8,4179.1,1.07611]
[1758645517704,0.43037,4179.9,4179.8,0.43037]
[1758645517903,3.4648,4180.4,4179.7,0.43038]
[1758645518109,0.257,4180.4,4179.8,0.43037]
[1758645518304,4.28371,4179.9,4178.8,3.2078]
[1758645518506,0.43045,4179.0,4178.8,3.2078]
[1758645518707,1.07593,4179.8,4179.0,0.43045]
[1758645518708,0.43044,4179.2,4179.0,0.43045]
[1758645518908,0.43044,4179.1,4178.9,0.43046]
[1758645519115,0.43045,4179.0,4178.8,3.2078]
[1758645519314,0.43045,4179.0,4178.8,3.32723128]
[1758645519709,4.28372,4179.9,4178.8,2.89676128]
[1758645519908,0.4304,4179.6,4179.3,3.2078]
[1758645520113,0.43038,4179.7,4179.4,0.4304]
[1758645520313,0.43038,4179.8,4179.6,0.43039]
[1758645520512,0.43039,4179.7,4179.5,0.257]
[1758645520812,1.07592,4179.9,4178.8,3.63827]
[1758645521008,4.2837,4180.0,4179.3,3.2078]
[1758645521208,0.257,4180.4,4179.3,3.2078]
[1758645521410,0.4304,4179.5,4179.3,3.63822]
[1758645521615,0.4304,4179.5,4179.3,3.2078]
[1758645523117,0.4304,4179.5,4179.3,2.97452167]
[1758645523315,4.28374,4179.8,4178.8,3.63827]
[1758645523509,4.28374,4179.8,4179.1,0.43044]
[1758645523510,0.43043,4179.3,4179.1,0.43044]
[1758645523710,0.4304,4179.5,4178.8,1.26975105]
[1758645523906,3.2078,4179.8,4179.2,0.43043]
[1758645524214,0.43042,4179.4,4178.8,1.26975105]
[1758645524414,3.2078,4179.8,4179.2,0.43043]
[1758645524615,3.2078,4179.8,4179.1,1.33309]
[1758645524814,3.2078,4179.8,4179.7,0.43038]
[1758645525419,0.43038,4179.7,4179.4,0.68741]
[1758645525812,0.43038,4179.7,4179.5,0.4304]
[1758645526116,3.2078,4179.8,4179.1,0.257]
[1758645526418,3.2078,4179.8,4179.7,0.43038]
[1758645526619,0.43038,4179.7,4179.1,0.257]
[1758645526814,3.2078,4179.8,4179.3,0.43042]
[1758645526815,0.43039,4179.6,4179.3,0.43042]
[1758645527122,3.2078,4179.8,4179.1,0.257]
[1758645527310,0.4304,4179.5,4179.1,0.257]
[1758645527510,3.2078,4179.8,4179.0,0.43044]
[1758645527718,1.07601,4179.5,4179.1,0.257]
[1758645527914,1.07601,4179.5,4178.9,0.257]
[1758645528120,0.43046,4179.0,4178.9,0.257]
[1758645528309,0.43043,4179.3,4178.9,0.257]
[1758645528619,1.07601,4179.5,4178.9,0.257]
[1758645528815,0.43045,4179.0,4178.9,0.257]
[1758645529021,0.43044,4179.2,4178.9,0.257]
[1758645529223,0.43045,4179.0,4178.9,0.257]
[1758645529425,3.2078,4179.8,4178.9,0.257]
[1758645529921,0.43044,4179.1,4178.9,0.257]
[1758645530224,0.43045,4179.0,4178.9,0.257]
[1758645530424,0.43045,4179.0,4177.8,1.07642]
[1758645530425,4.28387,4179.3,4178.3,3.2078]
[1758645530618,1.07614,4179.0,4178.4,0.257]
[1758645530825,0.4305,4178.5,4178.4,0.257]
[1758645531122,0.257,4179.2,4178.4,0.257]
[1758645531326,0.43048,4178.7,4178.4,0.68751]
[1758645531516,0.43049,4178.6,4178.4,0.257]
[1758645531822,0.257,4179.2,4178.4,0.257]
[1758645532021,0.257,4179.2,4178.5,0.4305]
[1758645532225,0.43049,4178.6,4178.4,0.257]
[1758645532824,0.4305,4178.5,4178.4,0.257]
[1758645533124,1.07612,4179.1,4178.3,3.2078]
[1758645533125,1.07613,4179.0,4178.3,3.2078]
[1758645533310,0.257,4179.2,4178.3,3.2078]
[1758645533512,0.43051,4178.4,4178.3,3.2078]
[1758645533912,0.43048,4178.7,4178.1,0.257]
[1758645534215,3.63828,4178.8,4178.1,0.257]
[1758645534415,3.2078,4178.8,4178.2,3.2078]
[1758645534615,3.2078,4178.8,4178.7,0.43048]
[1758645535319,3.63827,4178.8,4178.3,0.43052]
[1758645535511,3.2078,4178.8,4178.5,0.4305]
[1758645535712,3.2078,4178.8,4178.4,0.43051]
[1758645536011,3.2078,4178.8,4178.2,3.2078]
[1758645536215,0.4305,4178.5,4178.3,0.43052]
[1758645536416,0.43049,4178.6,4178.3,0.43052]
[1758645536924,0.4305,4178.5,4178.4,0.256]
[1758645538320,3.2078,4178.8,4178.4,0.256]
[1758645538526,3.2078,4178.8,4178.7,0.43048]
[1758645538714,3.63828,4178.8,4178.5,0.4305]
[1758645538913,3.2078,4178.8,4178.4,0.256]
[1758645539124,0.4305,4178.6,4178.4,0.68651]
[1758645539722,3.2078,4178.8,4178.7,0.43048]
[1758645539924,3.2078,4178.8,4178.4,0.256]
[1758645540222,0.43048,4178.7,4178.5,0.4305]
[1758645540417,0.43048,4178.7,4178.4,0.68651]
[1758645540629,0.4305,4178.5,4178.4,0.256]
[1758645540922,3.2078,4178.8,4178.4,0.256]
[1758645541126,0.4305,4178.5,4178.4,0.256]
[1758645541615,0.43057,4177.9,4177.7,3.63838]
[1758645541819,0.43055,4178.0,4177.8,0.43057]
[1758645542024,3.4638,4178.8,4177.7,3.4638]
[1758645542221,1.07631,4178.3,4177.7,3.4638]
[1758645542622,0.43062,4177.4,4177.1,3.2078]
[1758645542823,0.4306,4177.6,4177.2,0.256]
[1758645543029,4.28418,4178.1,4177.2,0.256]
[1758645543329,4.28418,4178.1,4176.5,3.2078]
[1758645543330,0.4307,4176.6,4176.5,3.2078]
[1758645543530,0.4307,4176.6,4176.5,3.4638]
[1758645543727,0.4307,4176.7,4176.5,3.4638]
[1758645544131,3.2078,4177.1,4176.5,3.4638]
[1758645544428,0.256,4177.4,4176.6,0.43069]
[1758645544733,3.2078,4177.1,4176.5,3.4638]
[1758645545027,0.4307,4176.7,4176.5,3.4638]
[1758645545430,0.43073,4176.3,4176.0,3.2078]
[1758645545629,1.0767,4176.8,4176.0,3.4628]
[1758645545932,0.43074,4176.2,4176.0,3.2078]
[1758645546733,0.43077,4176.0,4175.6,0.255]
[1758645547032,1.07678,4176.5,4175.6,0.255]
[1758645547033,0.43079,4175.8,4175.6,0.255]
[1758645547331,3.6386,4175.7,4174.5,0.255]
[1758645547524,0.43087,4175.0,4174.5,0.255]
[1758645548327,0.4309,4174.7,4174.5,0.255]
[1758645549135,3.6387,4174.7,4174.5,0.255]
[1758645549934,0.43094,4174.3,4174.1,0.01675256]
[1758645550429,3.4628,4175.2,4174.2,3.2078]
[1758645550631,3.2078,4175.2,4174.5,0.43091]
[1758645550829,3.2078,4175.2,4174.6,0.4309]
[1758645551027,3.2078,4175.2,4174.4,0.255]
[1758645551424,0.43087,4175.0,4174.4,0.68592]
[1758645551735,0.4309,4174.7,4174.4,0.255]
[1758645553031,0.43091,4174.6,4174.4,0.255]
[1758645553231,0.43089,4174.8,4174.4,0.255]
[1758645553433,3.2078,4175.7,4175.3,0.43083]
[1758645553630,3.2078,4176.2,4175.4,0.255]
[1758645553928,3.2078,4176.2,4175.7,0.43078]
[1758645554130,0.43076,4176.1,4175.8,0.255]
[1758645554330,0.43076,4176.0,4175.8,0.255]
[1758645554536,3.2078,4176.2,4175.8,0.255]
[1758645554835,3.2078,4176.2,4176.0,0.43076]
[1758645555134,0.43077,4175.9,4175.8,0.255]
[1758645555333,0.3325,4175.9,4175.8,0.255]
[1758645555721,3.2078,4176.2,4175.8,1.02078]
[1758645555925,0.43076,4176.0,4175.8,0.59]
[1758645556125,0.76326,4176.0,4175.8,0.59]
[1758645556330,0.3325,4175.9,4175.8,0.255]
[1758645560230,0.76333,4175.3,4175.2,3.2078]
[1758645560542,0.3325,4175.3,4175.2,3.2078]
[1758645561038,0.3325,4175.1,4175.0,0.255]
[1758645561338,1.20055,4175.5,4174.7,3.63869]
[1758645561339,0.76338,4174.8,4174.7,3.2078]
[1758645562137,0.3325,4174.8,4174.7,3.2078]
[1758645562336,0.76338,4174.8,4174.7,3.2078]
[1758645563838,0.3325,4174.8,4174.7,3.2078]
[1758645564035,0.3339,4175.0,4174.8,0.75778]
[1758645564233,0.76477,4175.0,4174.8,0.3269]
[1758645564433,0.43087,4174.9,4174.8,0.3269]
[1758645564628,0.3339,4174.9,4174.8,0.75778]
[1758645564931,0.3339,4174.9,4174.8,0.3269]
[1758645565125,0.3339,4174.9,4174.7,3.2078]
[1758645565126,0.43088,4174.8,4174.7,3.2078]
[1758645565331,0.76478,4174.8,4174.7,3.2078]
[1758645566343,3.2078,4175.9,4174.9,0.3269]
[1758645566540,3.5417,4175.9,4175.1,0.3269]
[1758645566737,0.4308,4175.6,4175.4,0.3269]
[1758645566935,3.63857,4175.9,4175.6,0.3269]
[1758645567136,3.97247,4175.9,4175.6,0.3269]
[1758645567334,3.5417,4175.9,4175.7,0.43079]
[1758645567643,3.97248,4175.9,4175.6,0.3269]
[1758645567840,3.5417,4175.9,4175.8,0.3269]
[1758645568230,3.97247,4175.9,4175.8,0.3269]
[1758645568735,0.76468,4175.8,4175.6,0.7577]
[1758645569042,0.76469,4175.7,4175.6,0.3269]
[1758645569237,0.3339,4175.6,4175.5,0.43081]
[1758645569436,0.3339,4175.6,4175.5,0.75771]
[1758645569737,3.2078,4175.9,4175.2,3.2078]
[1758645569930,0.3339,4175.6,4175.5,0.43081]
[1758645570134,0.3339,4175.6,4175.5,0.75771]
[1758645570339,0.3339,4175.8,4175.7,0.75769]
[1758645570540,0.76471,4175.5,4175.4,0.254]
[1758645570741,0.89261,4175.5,4175.4,0.254]
[1758645570937,0.4618,4175.5,4175.4,0.68482]
[1758645571140,0.3339,4175.5,4175.4,1.01172]
[1758645571335,0.3339,4175.5,4175.4,0.5809]
[1758645571543,0.3339,4175.5,4175.4,0.8309]
[1758645571741,0.3339,4175.5,4175.4,1.26172]
[1758645572135,0.76471,4175.5,4175.4,0.8309]
[1758645572749,0.3339,4175.5,4175.4,1.26172]
[1758645573352,0.3339,4175.5,4175.4,0.504]
[1758645573550,0.3339,4175.5,4175.4,1.26172]
[1758645573953,1.30951,4175.5,4175.4,0.9282]
[1758645574849,1.30951,4175.5,4175.4,0.25]
[1758645576246,0.8787,4175.5,4175.4,0.25]
[1758645576451,0.8787,4175.5,4175.4,0.89092]
[1758645576650,1.30951,4175.5,4175.4,0.4601]
[1758645576846,1.30951,4175.5,4175.4,0.25]
[1758645578446,1.30951,4175.5,4175.4,0.5]
[1758645579255,6.30951,4175.5,4175.4,0.5]
[1758645579446,1.30951,4175.5,4175.4,0.5]
[1758645580651,1.30951,4175.5,4175.4,0.25]
[1758645582451,1.56251,4175.5,4175.4,0.25]
[1758645583351,0.8787,4175.5,4175.4,0.68082]
[1758645583557,0.97278,4175.8,4175.7,0.7511]
[1758645583963,1.18158,4175.8,4175.7,0.85499]
[1758645584349,0.7508,4175.8,4175.7,0.85499]
[1758645584652,1.30951,4175.5,4175.4,0.25]
[1758645586955,6.30951,4175.5,4175.4,0.25]
[1758645587158,1.18169,4174.7,4174.6,0.6839]
[1758645587456,1.18169,4174.7,4174.6,0.253]
[1758645587655,0.1279,4175.0,4174.1,0.01675256]
[1758645587656,1.1817,4174.6,4174.1,0.01675256]
[1758645587955,0.76485,4174.2,4174.1,0.01675256]
[1758645588259,1.01785,4174.2,4174.1,0.01675256]
[1758645590661,1.01785,4174.2,4173.4,3.2078]
[1758645590662,0.89282,4173.5,4173.4,3.2078]
[1758645592155,0.43104,4173.3,4173.2,0.9]
[1758645592364,3.2078,4173.5,4173.2,0.9]
[1758645592550,3.5417,4173.5,4173.2,0.9]
[1758645592750,0.76493,4173.4,4173.2,0.9]
[1758645592964,0.3339,4173.3,4173.2,0.9]
[1758645593266,0.3339,4173.3,4173.2,1.2094]
[1758645593461,0.3339,4173.3,4173.2,0.9]
[1758645593761,0.7478,4173.3,4173.2,0.9]
[1758645594357,0.7478,4173.3,4173.2,1.1212]
[1758645594862,0.7478,4173.3,4173.2,0.9]
[1758645595865,1.17884,4173.3,4173.2,0.9]
[1758645597764,1.43084,4173.3,4173.2,0.9]
[1758645598770,6.86711,4173.3,4171.9,0.3094]
[1758645599062,0.533,4172.6,4172.5,0.96322]
[1758645599258,1.21611,4172.6,4172.5,1.18442]
[1758645599461,1.21611,4172.6,4172.5,0.7533]
[1758645599865,0.785,4172.6,4172.5,1.18442]
[1758645600158,0.533,4172.6,4172.5,1.18442]
[1758645600361,1.21607,4173.0,4172.9,0.7533]
[1758645600660,0.533,4173.0,4172.9,1.18438]
[1758645600850,3.2078,4173.7,4173.6,0.7533]
[1758645601054,4.3754,4173.7,4173.6,0.2212]
[1758645601266,1.16765,4173.2,4173.1,0.4732]
[1758645601457,1.16765,4173.2,4173.1,0.252]
[1758645601660,1.16765,4173.2,4173.1,0.4732]
[1758645602262,0.7366,4173.2,4173.1,0.6959]
[1758645602466,1.16765,4173.2,4173.1,1.0053]
[1758645602763,1.16765,4173.2,4173.1,0.6959]
[1758645603463,0.43112,4172.5,4172.4,0.4439]
[1758645603665,1.29872,4172.5,4172.4,0.2212]
[1758645603869,0.3227,4172.4,4172.3,3.9611]
[1758645604070,0.75383,4172.4,4172.3,3.9611]
[1758645604369,0.96413,4172.4,4172.3,0.7533]
[1758645604559,0.75389,4171.9,4171.6,3.4578]
[1758645604757,0.7366,4171.7,4171.6,3.679]
[1758645605162,0.3227,4171.9,4171.8,0.2212]
[1758645605470,0.75384,4172.3,4171.8,1.18449]
[1758645605675,0.7366,4172.2,4172.1,0.2212]
[1758645606464,3.9444,4172.2,4172.1,0.2212]
[1758645607371,0.533,4171.8,4171.7,1.1845]
[1758645607673,0.533,4172.1,4172.0,0.2212]
[1758645608368,0.2103,4171.7,4171.6,4.2111]
[1758645608561,0.533,4171.7,4171.6,1.0033]
[1758645608761,0.7366,4171.7,4171.6,0.6939]
[1758645610470,0.7366,4171.7,4171.6,0.25]